[Event "MČR 2022 rapid"]
[Site "Turnov, Czech Republic"]
[Date "2022.09.11"]
[Round "7.1"]
[White "Polák, Tomáš"]
[Black "Plát, Vojtěch"]
[Result "1/2-1/2"]
[TimeControl "2x 15 min + 5s/move"]
[WhiteElo "2487"]
[BlackElo "2563"]

1. Nf3 {[%clk 00:15:07]} d6 {[%clk 00:15:09]} 2. d4 {[%clk 00:15:08]} {[%emt
00:00:04]} Bg4 {[%clk 00:15:13]} 3. e4 {[%clk 00:15:06]} {[%emt 00:00:08]} c6
{[%clk 00:15:09]} {[%emt 00:00:07]} 4. h3 {[%clk 00:15:05]} {[%emt 00:00:10]}
Bh5 {[%clk 00:15:13]} 5. Nc3 {[%clk 00:14:47]} {[%emt 00:00:21]} Nf6 {[%clk
00:15:16]} 6. g4 {[%clk 00:14:33]} {[%emt 00:00:18]} Bg6 {[%clk 00:15:20]} 7.
Qe2 {[%clk 00:14:37]} e6 {[%clk 00:14:55]} {[%emt 00:00:32]} 8. h4 {[%clk
00:14:19]} {[%emt 00:00:22]} h5 {[%clk 00:14:52]} {[%emt 00:00:11]} 9. g5
{[%clk 00:14:21]} {[%emt 00:00:05]} Nfd7 {[%clk 00:14:17]} {[%emt 00:00:36]} 10.
Bh3 {[%clk 00:14:00]} {[%emt 00:00:26]} Na6 {[%clk 00:13:31]} {[%emt 00:00:50]}
11. Bf4 {[%clk 00:13:45]} {[%emt 00:00:20]} Be7 {[%clk 00:13:22]} {[%emt
00:00:14]} 12. O-O {[%clk 00:12:44]} {[%emt 00:01:09]} O-O {[%clk 00:13:09]}
{[%emt 00:00:15]} 13. Rad1 {[%clk 00:12:28]} {[%emt 00:00:23]} d5 {[%clk
00:13:09]} {[%emt 00:00:05]} 14. a3 {[%clk 00:12:01]} {[%emt 00:00:35]} Re8
{[%clk 00:12:46]} {[%emt 00:05:14]} 1/2-1/2

[Event "MČR 2022 rapid"]
[Site "Turnov, Czech Republic"]
[Date "2022.09.11"]
[Round "7.2"]
[White "Jansa, Vlastimil"]
[Black "Němec, Jáchym"]
[Result "0-1"]
[TimeControl "2x 15 min + 5s/move"]
[WhiteElo "2452"]
[BlackElo "2057"]

1. e4 {[%clk 00:15:08]} {[%emt 00:00:06]} c5 {[%clk 00:15:09]} 2. Nf3 {[%clk
00:15:12]} {[%emt 00:00:05]} Nc6 {[%clk 00:15:10]} 3. Bb5 {[%clk 00:15:15]} g6
{[%clk 00:15:13]} {[%emt 00:00:04]} 4. O-O {[%clk 00:15:17]} {[%emt 00:00:04]}
Bg7 {[%clk 00:15:16]} {[%emt 00:00:05]} 5. c3 {[%clk 00:15:20]} Nf6 {[%clk
00:15:19]} {[%emt 00:00:05]} 6. Re1 {[%clk 00:15:24]} O-O {[%clk 00:15:21]} 7.
h3 {[%clk 00:15:27]} {[%emt 00:00:04]} Qb6 {[%clk 00:14:48]} {[%emt 00:00:34]}
8. Ba4 {[%clk 00:15:08]} {[%emt 00:00:23]} e5 {[%clk 00:13:11]} {[%emt
00:01:42]} 9. d3 {[%clk 00:14:41]} {[%emt 00:00:36]} d6 {[%clk 00:13:13]}
{[%emt 00:00:07]} 10. Nbd2 {[%clk 00:14:33]} {[%emt 00:00:10]} Qc7 {[%clk
00:13:06]} {[%emt 00:00:08]} 11. Nc4 {[%clk 00:13:55]} {[%emt 00:00:42]} Rb8
{[%clk 00:13:05]} {[%emt 00:00:06]} 12. Ne3 {[%clk 00:13:25]} {[%emt 00:00:36]}
Be6 {[%clk 00:12:13]} {[%emt 00:00:58]} 13. Ng5 {[%clk 00:13:01]} {[%emt
00:00:28]} Bd7 {[%clk 00:11:44]} {[%emt 00:05:34]} 14. Bb3 {[%clk 00:12:52]}
Na5 {[%clk 00:11:30]} {[%emt 00:00:23]} 15. Bc2 {[%clk 00:12:12]} h6 {[%clk
00:11:31]} 16. Nf3 {[%clk 00:12:16]} Rfe8 {[%clk 00:11:12]} 17. a3 {[%clk
00:11:19]} Nc6 {[%clk 00:10:52]} {[%emt 00:00:05]} 18. b4 {[%clk 00:11:16]} Be6
{[%clk 00:10:27]} 19. Bb2 {[%clk 00:11:12]} Rbd8 {[%clk 00:09:56]} 20. d4
{[%clk 00:10:20]} {[%emt 00:00:05]} cxd4 {[%clk 00:09:57]} {[%emt 00:00:13]} 21.
cxd4 {[%clk 00:10:24]} d5 {[%clk 00:08:52]} {[%emt 00:01:06]} 22. dxe5 {[%clk
00:08:55]} {[%emt 00:01:32]} Nxe4 {[%clk 00:08:49]} {[%emt 00:00:10]} 23. Rc1
{[%clk 00:07:54]} {[%emt 00:01:03]} Qb8 {[%clk 00:08:32]} {[%emt 00:00:25]} 24.
Ba4 {[%clk 00:07:24]} {[%emt 00:00:32]} d4 {[%clk 00:05:20]} {[%emt 00:03:17]}
25. Ng4 {[%clk 00:06:54]} {[%emt 00:00:38]} Bxg4 {[%clk 00:03:59]} {[%emt
00:05:53]} 26. hxg4 {[%clk 00:06:47]} Nc3 {[%clk 00:04:01]} 27. Bxc3 {[%clk
00:05:59]} dxc3 {[%clk 00:04:05]} 28. Qb3 {[%clk 00:05:25]} {[%emt 00:01:35]}
b5 {[%clk 00:03:59]} 29. e6 {[%clk 00:02:54]} Kh7 {[%clk 00:02:45]} 30. exf7
{[%clk 00:02:14]} {[%emt 00:00:33]} Rxe1+ {[%clk 00:02:49]} 31. Rxe1 {[%clk
00:02:05]} {[%emt 00:00:15]} bxa4 {[%clk 00:02:52]} {[%emt 00:00:06]} 32. Qe6
{[%clk 00:00:50]} {[%emt 00:01:16]} c2 {[%clk 00:01:35]} {[%emt 00:01:22]} 33.
Qxc6 {[%clk 00:00:20]} {[%emt 00:00:35]} Rc8 {[%clk 00:01:39]} 34. f8=N+ {[%clk
00:00:08]} {[%emt 00:00:21]} Bxf8 {[%clk 00:01:39]} {[%emt 00:00:05]} 35. Qd7+
{[%clk 00:00:10]} {[%emt 00:00:05]} Bg7 {[%clk 00:01:38]} {[%emt 00:00:05]} 0-1

[Event "MČR 2022 rapid"]
[Site "Turnov, Czech Republic"]
[Date "2022.09.11"]
[Round "7.3"]
[White "Roubalík, Jakub"]
[Black "Červený, Martin"]
[Result "1/2-1/2"]
[TimeControl "2x 15 min + 5s/move"]
[WhiteElo "2339"]
[BlackElo "2413"]

1. d4 {[%clk 00:15:07]} {[%emt 00:00:03]} Nf6 {[%clk 00:15:00]} {[%emt
00:00:10]} 2. c4 {[%clk 00:15:09]} {[%emt 00:00:07]} d6 {[%clk 00:14:56]}
{[%emt 00:00:06]} 3. Nf3 {[%clk 00:14:56]} {[%emt 00:00:18]} Nbd7 {[%clk
00:14:56]} {[%emt 00:00:06]} 4. Nc3 {[%clk 00:14:59]} {[%emt 00:00:04]} e5
{[%clk 00:14:58]} 5. e4 {[%clk 00:15:01]} {[%emt 00:00:05]} g6 {[%clk
00:14:45]} {[%emt 00:00:14]} 6. Be2 {[%clk 00:15:00]} {[%emt 00:00:07]} Bg7
{[%clk 00:14:49]} 7. d5 {[%clk 00:14:42]} {[%emt 00:00:24]} O-O {[%clk
00:14:41]} {[%emt 00:00:13]} 8. h3 {[%clk 00:14:23]} {[%emt 00:00:24]} Nc5
{[%clk 00:14:27]} {[%emt 00:00:19]} 9. Qc2 {[%clk 00:14:13]} {[%emt 00:00:16]}
a5 {[%clk 00:14:30]} 10. Be3 {[%clk 00:13:46]} {[%emt 00:00:39]} b6 {[%clk
00:14:30]} {[%emt 00:00:04]} 11. Nd2 {[%clk 00:13:43]} {[%emt 00:00:06]} h6
{[%clk 00:13:57]} {[%emt 00:00:35]} 12. g4 {[%clk 00:13:32]} {[%emt 00:00:17]}
Nh7 {[%clk 00:13:45]} {[%emt 00:00:17]} 13. O-O-O {[%clk 00:13:17]} {[%emt
00:00:20]} Bd7 {[%clk 00:13:25]} {[%emt 00:00:25]} 14. Rdg1 {[%clk 00:12:10]}
{[%emt 00:01:17]} Qe7 {[%clk 00:12:35]} {[%emt 00:00:50]} 15. Kb1 {[%clk
00:11:59]} {[%emt 00:00:15]} Rfb8 {[%clk 00:12:31]} {[%emt 00:00:10]} 16. h4
{[%clk 00:11:57]} {[%emt 00:00:06]} a4 {[%clk 00:11:50]} {[%emt 00:00:46]} 17.
a3 {[%clk 00:10:22]} {[%emt 00:01:54]} Nf8 {[%clk 00:11:46]} 18. Ka2 {[%clk
00:09:49]} {[%emt 00:00:36]} Ra5 {[%clk 00:11:31]} {[%emt 00:00:18]} 19. h5
{[%clk 00:08:55]} {[%emt 00:00:59]} g5 {[%clk 00:11:29]} {[%emt 00:00:08]} 20.
Rd1 {[%clk 00:08:26]} {[%emt 00:00:36]} Nh7 {[%clk 00:11:02]} {[%emt 00:00:34]}
21. f3 {[%clk 00:08:29]} Nf6 {[%clk 00:10:58]} {[%emt 00:00:09]} 22. Nb5 {[%clk
00:08:17]} {[%emt 00:00:14]} c6 {[%clk 00:10:47]} {[%emt 00:00:17]} 23. dxc6
{[%clk 00:08:05]} {[%emt 00:00:17]} Bxc6 {[%clk 00:10:50]} 24. Nb1 {[%clk
00:07:26]} {[%emt 00:00:45]} Ne8 {[%clk 00:09:59]} {[%emt 00:00:56]} 25. N1c3
{[%clk 00:07:21]} {[%emt 00:00:11]} Rba8 {[%clk 00:08:49]} {[%emt 00:01:15]} 26.
Bxc5 {[%clk 00:06:42]} {[%emt 00:00:44]} bxc5 {[%clk 00:08:46]} {[%emt
00:00:12]} 27. Rd2 {[%clk 00:06:20]} {[%emt 00:00:21]} Bf8 {[%clk 00:08:49]}
{[%emt 00:00:06]} 28. Rhd1 {[%clk 00:06:24]} Qe6 {[%clk 00:07:51]} {[%emt
00:01:01]} 29. Ka1 {[%clk 00:06:12]} {[%emt 00:00:17]} Qf6 {[%clk 00:07:30]}
{[%emt 00:00:31]} 30. Nd5 {[%clk 00:06:02]} {[%emt 00:00:10]} Qd8 {[%clk
00:07:33]} {[%emt 00:00:06]} 31. Qc3 {[%clk 00:05:54]} {[%emt 00:00:14]} R5a6
{[%clk 00:06:12]} {[%emt 00:01:22]} 32. Ne3 {[%clk 00:05:48]} {[%emt 00:00:11]}
Bd7 {[%clk 00:05:14]} {[%emt 00:01:22]} 33. Bd3 {[%clk 00:05:28]} {[%emt
00:00:10]} Ng7 {[%clk 00:05:10]} {[%emt 00:00:06]} 34. Bf1 {[%clk 00:04:43]}
{[%emt 00:00:54]} Ne6 {[%clk 00:05:06]} {[%emt 00:00:06]} 35. Nd5 {[%clk
00:03:46]} {[%emt 00:00:59]} Rb8 {[%clk 00:04:44]} {[%emt 00:00:45]} 36. Ka2
{[%clk 00:03:23]} {[%emt 00:00:12]} Rb7 {[%clk 00:04:23]} {[%emt 00:00:25]} 37.
Qe3 {[%clk 00:02:49]} {[%emt 00:00:43]} Nd4 {[%clk 00:04:15]} {[%emt 00:00:09]}
38. Nxd4 {[%clk 00:02:46]} {[%emt 00:00:14]} exd4 {[%clk 00:04:18]} 39. Qf2
{[%clk 00:02:41]} {[%emt 00:00:05]} Be6 {[%clk 00:04:08]} {[%emt 00:00:16]} 40.
Bd3 {[%clk 00:02:32]} {[%emt 00:00:14]} Bg7 {[%clk 00:03:40]} {[%emt 00:00:36]}
41. f4 {[%clk 00:02:07]} {[%emt 00:00:27]} Bxd5 {[%clk 00:03:44]} 42. exd5
{[%clk 00:02:10]} {[%emt 00:00:07]} Rab6 {[%clk 00:03:39]} {[%emt 00:00:13]} 43.
Re1 {[%clk 00:01:42]} {[%emt 00:00:27]} Rb3 {[%clk 00:03:29]} {[%emt 00:00:13]}
44. fxg5 {[%clk 00:01:40]} {[%emt 00:00:08]} Qxg5 {[%clk 00:02:30]} {[%emt
00:01:06]} 45. Re8+ {[%clk 00:01:43]} Bf8 {[%clk 00:02:35]} {[%emt 00:00:04]}
46. Qe2 {[%clk 00:01:21]} {[%emt 00:00:28]} Re7 {[%clk 00:02:01]} {[%emt
00:00:35]} 47. Rxe7 {[%clk 00:01:22]} {[%emt 00:00:05]} Bxe7 {[%clk 00:02:02]}
{[%emt 00:00:04]} 48. Rd1 {[%clk 00:01:11]} {[%emt 00:00:19]} Qe3 {[%clk
00:01:36]} {[%emt 00:00:31]} 49. Qf1 {[%clk 00:01:14]} Bg5 {[%clk 00:01:18]}
{[%emt 00:00:20]} 50. Qf5 {[%clk 00:01:15]} {[%emt 00:00:05]} Qe5 {[%clk
00:00:42]} {[%emt 00:00:43]} 51. Qh7+ {[%clk 00:01:10]} {[%emt 00:00:09]} Kf8
{[%clk 00:00:46]} 52. Rf1 {[%clk 00:01:14]} Bf4 {[%clk 00:00:44]} {[%emt
00:00:12]} 53. g5 {[%clk 00:00:37]} {[%emt 00:00:38]} hxg5 {[%clk 00:00:38]}
{[%emt 00:00:10]} 54. h6 {[%clk 00:00:41]} Qe3 {[%clk 00:00:22]} {[%emt
00:00:24]} 55. Qg7+ {[%clk 00:00:32]} {[%emt 00:00:11]} Ke7 {[%clk 00:00:27]}
56. Bc2 {[%clk 00:00:37]} Rxa3+ {[%clk 00:00:17]} {[%emt 00:00:16]} 57. bxa3
{[%clk 00:00:37]} {[%emt 00:00:05]} Qe2 {[%emt 00:00:57]} 58. Kb2 Qxf1 59. Ka2
Qe2 60. Kb2 {[%emt 00:01:08]} Qf1 61. Ka2 Qe2 1/2-1/2

[Event "MČR 2022 rapid"]
[Site "Turnov, Czech Republic"]
[Date "2022.09.11"]
[Round "7.4"]
[White "Baláček, Tadeáš"]
[Black "Pisk, Petr"]
[Result "1-0"]
[TimeControl "2x 15 min + 5s/move"]
[WhiteElo "2247"]
[BlackElo "2389"]

1. Nf3 {[%clk 00:15:03]} {[%emt 00:00:07]} Nf6 {[%clk 00:15:01]} {[%emt
00:00:06]} 2. c4 {[%clk 00:14:54]} {[%emt 00:00:14]} e6 {[%clk 00:14:58]}
{[%emt 00:00:07]} 3. g3 {[%clk 00:14:56]} {[%emt 00:00:06]} d5 {[%clk
00:14:59]} {[%emt 00:00:04]} 4. b3 {[%clk 00:14:52]} {[%emt 00:00:06]} a6
{[%clk 00:14:25]} {[%emt 00:00:40]} 5. Bg2 {[%clk 00:14:52]} {[%emt 00:00:05]}
b5 {[%clk 00:14:27]} {[%emt 00:00:07]} 6. cxd5 {[%clk 00:14:41]} {[%emt
00:00:13]} exd5 {[%clk 00:14:26]} {[%emt 00:00:05]} 7. d4 {[%clk 00:14:39]}
{[%emt 00:00:06]} Bd6 {[%clk 00:13:35]} {[%emt 00:00:57]} 8. O-O {[%clk
00:14:38]} {[%emt 00:00:14]} Qe7 {[%clk 00:13:17]} {[%emt 00:00:16]} 9. Bb2
{[%clk 00:12:26]} {[%emt 00:02:20]} Nbd7 {[%clk 00:13:06]} {[%emt 00:00:12]} 10.
Nc3 {[%clk 00:12:24]} {[%emt 00:00:12]} Bb7 {[%clk 00:10:25]} {[%emt 00:02:43]}
11. Qc2 {[%clk 00:12:08]} {[%emt 00:00:19]} O-O {[%clk 00:10:12]} {[%emt
00:00:22]} 12. Nh4 {[%clk 00:10:59]} {[%emt 00:01:10]} g6 {[%clk 00:08:54]}
{[%emt 00:01:23]} 13. e3 {[%clk 00:10:46]} {[%emt 00:00:25]} Ne4 {[%clk
00:07:47]} {[%emt 00:01:04]} 14. Rad1 {[%clk 00:10:18]} {[%emt 00:00:42]} Rae8
{[%clk 00:06:59]} {[%emt 00:00:44]} 15. Nf3 {[%clk 00:09:49]} {[%emt 00:00:36]}
f5 {[%clk 00:06:54]} {[%emt 00:00:17]} 16. Ne1 {[%clk 00:09:00]} {[%emt
00:00:44]} g5 {[%clk 00:06:19]} {[%emt 00:00:43]} 17. Nd3 {[%clk 00:08:52]}
{[%emt 00:00:10]} f4 {[%clk 00:06:17]} {[%emt 00:00:07]} 18. exf4 {[%clk
00:07:46]} {[%emt 00:01:11]} gxf4 {[%clk 00:06:17]} {[%emt 00:00:05]} 19. Nxe4
{[%clk 00:07:47]} {[%emt 00:00:06]} dxe4 {[%clk 00:06:15]} {[%emt 00:00:08]} 20.
Nxf4 {[%clk 00:07:50]} {[%emt 00:00:05]} Bxf4 {[%clk 00:05:25]} {[%emt
00:00:49]} 21. gxf4 {[%clk 00:07:52]} {[%emt 00:00:05]} Rxf4 {[%clk 00:05:28]}
22. Qxc7 {[%clk 00:06:50]} {[%emt 00:01:14]} Rg4 {[%clk 00:02:14]} {[%emt
00:03:13]} 23. Qxb7 {[%clk 00:06:45]} {[%emt 00:00:18]} Qg7 {[%clk 00:01:52]}
{[%emt 00:00:19]} 24. Kh1 {[%clk 00:06:20]} {[%emt 00:00:37]} Rxg2 {[%clk
00:01:53]} 25. Rg1 {[%clk 00:06:21]} {[%emt 00:00:08]} Rg6 {[%clk 00:01:37]}
{[%emt 00:00:13]} 26. Qd5+ {[%clk 00:03:22]} {[%emt 00:03:08]} Qf7 {[%clk
00:01:23]} {[%emt 00:00:14]} 27. Rxg6+ {[%clk 00:02:48]} {[%emt 00:00:40]} hxg6
{[%clk 00:01:26]} {[%emt 00:00:05]} 28. Qxf7+ {[%clk 00:02:51]} Kxf7 {[%clk
00:01:30]} {[%emt 00:00:09]} 29. d5 {[%clk 00:02:18]} {[%emt 00:00:33]} e3
{[%clk 00:01:34]} 30. fxe3 {[%clk 00:02:19]} Rxe3 {[%clk 00:01:38]} {[%emt
00:00:06]} 31. Rd2 {[%clk 00:02:17]} {[%emt 00:00:06]} b4 {[%clk 00:01:13]}
{[%emt 00:00:27]} 32. Bd4 {[%clk 00:02:11]} {[%emt 00:00:10]} Re1+ {[%clk
00:00:59]} {[%emt 00:00:20]} 33. Kg2 {[%clk 00:02:13]} {[%emt 00:00:09]} Ke7
{[%clk 00:00:52]} {[%emt 00:00:09]} 34. Bf2 {[%clk 00:01:43]} {[%emt 00:00:31]}
Rb1 {[%clk 00:00:43]} {[%emt 00:00:15]} 35. Kf3 {[%clk 00:01:38]} {[%emt
00:00:10]} Rh1 {[%clk 00:00:20]} {[%emt 00:00:28]} 36. Kf4 {[%clk 00:01:05]}
{[%emt 00:00:38]} Kf7 {[%clk 00:00:11]} {[%emt 00:00:14]} 37. Bd4 {[%clk
00:00:54]} {[%emt 00:00:27]} Rf1+ {[%clk 00:00:14]} 38. Rf2 {[%clk 00:00:55]}
Rxf2+ {[%clk 00:00:12]} {[%emt 00:00:05]} 39. Bxf2 {[%clk 00:00:59]} Nf6 {[%clk
00:00:15]} {[%emt 00:00:05]} 40. Bc5 {[%clk 00:00:27]} {[%emt 00:00:42]} g5+
{[%clk 00:00:10]} {[%emt 00:00:07]} 41. Ke5 {[%clk 00:00:23]} {[%emt 00:00:05]}
Ng4+ {[%clk 00:00:14]} 42. Kd6 {[%clk 00:00:26]} {[%emt 00:00:05]} Nxh2 {[%clk
00:00:19]} 43. Kc7 {[%clk 00:00:21]} {[%emt 00:00:06]} Nf3 {[%clk 00:00:07]}
{[%emt 00:00:21]} 44. d6 {[%clk 00:00:24]} Ne5 {[%clk 00:00:10]} 45. d7 {[%clk
00:00:24]} {[%emt 00:00:05]} Nxd7 {[%clk 00:00:13]} {[%emt 00:00:05]} 46. Kxd7
{[%clk 00:00:28]} a5 {[%clk 00:00:14]} {[%emt 00:00:05]} 47. Kc6 {[%clk
00:00:31]} 1-0

[Event "MČR 2022 rapid"]
[Site "Turnov, Czech Republic"]
[Date "2022.09.11"]
[Round "7.5"]
[White "Štoček, Jiří"]
[Black "Vykouk, Jan"]
[Result "1-0"]
[TimeControl "2x 15 min + 5s/move"]
[WhiteElo "2521"]
[BlackElo "2417"]

1. d4 {[%clk 00:15:07]} Nf6 {[%clk 00:15:09]} 2. c4 {[%clk 00:15:11]} {[%emt
00:00:08]} g6 {[%clk 00:15:12]} 3. Nc3 {[%clk 00:15:14]} d6 {[%clk 00:15:14]}
{[%emt 00:00:04]} 4. e4 {[%clk 00:15:13]} {[%emt 00:00:04]} Bg7 {[%clk
00:15:17]} 5. Be2 {[%clk 00:15:13]} {[%emt 00:00:11]} O-O {[%clk 00:15:19]} 6.
Nf3 {[%clk 00:15:17]} Nbd7 {[%clk 00:15:21]} {[%emt 00:00:07]} 7. Be3 {[%clk
00:15:12]} {[%emt 00:00:05]} e5 {[%clk 00:15:22]} {[%emt 00:00:05]} 8. d5
{[%clk 00:15:14]} {[%emt 00:00:09]} a5 {[%clk 00:15:25]} 9. Nd2 {[%clk
00:15:16]} c5 {[%clk 00:15:03]} {[%emt 00:00:24]} 10. g4 {[%clk 00:15:03]}
{[%emt 00:00:18]} Ne8 {[%clk 00:15:00]} {[%emt 00:00:08]} 11. h4 {[%clk
00:15:05]} {[%emt 00:00:06]} Bf6 {[%clk 00:14:51]} {[%emt 00:00:12]} 12. g5
{[%clk 00:15:05]} {[%emt 00:00:06]} Be7 {[%clk 00:14:39]} {[%emt 00:00:15]} 13.
Nf1 {[%clk 00:13:57]} {[%emt 00:01:12]} f6 {[%clk 00:14:37]} {[%emt 00:00:07]}
14. gxf6 {[%clk 00:13:56]} {[%emt 00:00:07]} Bxf6 {[%clk 00:14:25]} {[%emt
00:00:17]} 15. h5 {[%clk 00:13:55]} {[%emt 00:00:05]} Bg5 {[%clk 00:14:02]}
{[%emt 00:00:28]} 16. hxg6 {[%clk 00:13:50]} {[%emt 00:00:10]} hxg6 {[%clk
00:14:06]} {[%emt 00:00:05]} 17. Bg4 {[%clk 00:12:11]} {[%emt 00:01:55]} Kg7
{[%clk 00:13:21]} {[%emt 00:00:36]} 18. Be6 {[%clk 00:11:47]} {[%emt 00:00:30]}
Bf4 {[%clk 00:12:04]} {[%emt 00:01:19]} 19. Qg4 {[%clk 00:09:38]} {[%emt
00:02:19]} Nef6 {[%clk 00:12:05]} 20. Qg2 {[%clk 00:09:32]} {[%emt 00:00:25]}
Rh8 {[%clk 00:10:10]} {[%emt 00:01:46]} 21. Rg1 {[%clk 00:07:57]} {[%emt
00:01:43]} Nf8 {[%clk 00:10:06]} {[%emt 00:00:17]} 22. Bxc8 {[%clk 00:07:27]}
{[%emt 00:00:23]} Qxc8 {[%clk 00:09:33]} {[%emt 00:00:38]} 23. Bxf4 {[%clk
00:07:19]} {[%emt 00:00:22]} exf4 {[%clk 00:09:37]} 24. Qg5 {[%clk 00:07:20]}
Qh3 {[%clk 00:05:57]} {[%emt 00:03:53]} 25. Qxf4 {[%clk 00:07:01]} {[%emt
00:00:14]} Rh4 {[%clk 00:05:51]} {[%emt 00:00:10]} 26. Qxd6 {[%clk 00:06:37]}
{[%emt 00:00:36]} Re8 {[%clk 00:05:55]} 27. O-O-O {[%clk 00:05:53]} {[%emt
00:00:47]} Nxe4 {[%clk 00:05:55]} {[%emt 00:00:05]} 28. Nxe4 {[%clk 00:05:11]}
{[%emt 00:00:43]} Rexe4 {[%clk 00:04:46]} {[%emt 00:01:17]} 29. Ne3 {[%clk
00:05:04]} {[%emt 00:00:15]} Qf3 {[%clk 00:03:15]} {[%emt 00:01:39]} 30. Kb1
{[%clk 00:04:32]} {[%emt 00:00:34]} Rhf4 {[%clk 00:02:06]} {[%emt 00:01:13]} 31.
Rd2 {[%clk 00:03:59]} {[%emt 00:00:32]} b5 {[%clk 00:01:55]} {[%emt 00:00:22]}
32. cxb5 {[%clk 00:03:40]} {[%emt 00:00:20]} c4 {[%clk 00:01:04]} {[%emt
00:00:59]} 33. b6 {[%emt 00:00:20]} c3 34. Qc7+ {[%clk 00:03:15]} {[%emt
00:00:14]} Kg8 {[%clk 00:01:03]} {[%emt 00:00:07]} 35. Qxc3 {[%clk 00:03:13]}
{[%emt 00:00:10]} Rb4 {[%clk 00:00:52]} {[%emt 00:00:22]} 36. d6 {[%clk
00:02:52]} {[%emt 00:00:20]} Qe4+ {[%clk 00:00:54]} 37. Ka1 {[%clk 00:02:42]}
{[%emt 00:00:15]} Qe6 {[%clk 00:00:31]} {[%emt 00:00:29]} 38. Nd5 {[%clk
00:02:01]} {[%emt 00:00:46]} Rfc4 {[%clk 00:00:35]} 39. Qf6 {[%clk 00:01:28]}
{[%emt 00:00:41]} Rg4 {[%clk 00:00:09]} {[%emt 00:00:33]} 40. Rgd1 {[%clk
00:00:58]} {[%emt 00:00:39]} 1-0

[Event "MČR 2022 rapid"]
[Site "Turnov, Czech Republic"]
[Date "2022.09.11"]
[Round "7.6"]
[White "Kraus, Tomáš"]
[Black "Petr, Martin"]
[Result "0-1"]
[TimeControl "2x 15 min + 5s/move"]
[WhiteElo "2395"]
[BlackElo "2506"]

1. Nf3 {[%clk 00:15:05]} {[%emt 00:02:34]} d5 {[%clk 00:15:06]} {[%emt
00:00:25]} 2. d4 {[%clk 00:15:01]} Nf6 {[%clk 00:15:02]} {[%emt 00:00:08]} 3.
c4 {[%clk 00:15:05]} e6 {[%clk 00:15:03]} {[%emt 00:00:05]} 4. Nc3 {[%clk
00:15:00]} {[%emt 00:00:05]} Be7 {[%clk 00:15:03]} {[%emt 00:00:06]} 5. cxd5
{[%clk 00:13:58]} {[%emt 00:01:06]} exd5 {[%clk 00:15:01]} {[%emt 00:00:07]} 6.
Bf4 {[%clk 00:14:01]} c6 {[%clk 00:14:37]} {[%emt 00:00:31]} 7. e3 {[%clk
00:13:52]} {[%emt 00:00:13]} Nbd7 {[%clk 00:14:22]} {[%emt 00:00:20]} 8. Bd3
{[%clk 00:13:25]} {[%emt 00:00:43]} Nh5 {[%clk 00:14:05]} {[%emt 00:00:13]} 9.
Be5 {[%clk 00:13:11]} {[%emt 00:00:19]} Nxe5 {[%clk 00:13:57]} {[%emt
00:00:12]} 10. dxe5 {[%clk 00:12:47]} {[%emt 00:00:29]} g6 {[%clk 00:13:57]}
{[%emt 00:00:09]} 11. O-O {[%clk 00:12:34]} {[%emt 00:00:13]} O-O {[%clk
00:13:00]} {[%emt 00:01:08]} 12. Rc1 {[%clk 00:12:15]} {[%emt 00:00:19]} Re8
{[%clk 00:11:40]} {[%emt 00:01:25]} 13. Qa4 {[%clk 00:11:09]} {[%emt 00:01:12]}
Bf8 {[%clk 00:11:03]} {[%emt 00:00:42]} 14. h3 {[%clk 00:10:39]} {[%emt
00:00:37]} Bd7 {[%clk 00:10:38]} {[%emt 00:00:27]} 15. Rfd1 {[%clk 00:10:32]}
{[%emt 00:00:12]} a6 {[%clk 00:08:42]} {[%emt 00:02:00]} 16. Qb3 {[%clk
00:08:46]} {[%emt 00:01:52]} b5 {[%clk 00:08:12]} {[%emt 00:02:20]} 17. g4
{[%clk 00:07:26]} Ng7 {[%clk 00:08:12]} 0-1